fUSD/lending_fUSD_20260525
["ID","MTS","AMOUNT","RATE_DAILY","PERIOD"]
[422957958,1779676239000,-169.39204064,0.00013026,2]
[422957967,1779676239000,-150.0,0.00013079,2]
[422957983,1779676239000,-500.0,0.0001315,2]
[422957963,1779676239000,-2595.73156971,0.0001305,2]
[422957961,1779676239000,-150.0,0.00013045,2]
[422957960,1779676239000,-169.39204064,0.0001304,2]
[422957970,1779676239000,-150.0,0.00013088,2]
[422957971,1779676239000,-150.0,0.00013095,2]
[422957965,1779676239000,-152.0,0.00013056,2]
[422957975,1779676239000,-169.39204064,0.00013122,2]
[422957976,1779676239000,-150.0,0.00013136,2]
[422957992,1779676239000,-169.39204064,0.00013191,2]
[422957982,1779676239000,-500.0,0.0001315,2]
[422957991,1779676239000,-150.0,0.00013181,2]
[422957973,1779676239000,-150.0,0.000131,2]
[422957978,1779676239000,-8294.21240666,0.00013139,2]
[422957984,1779676239000,-420.84701242,0.0001315,2]
[422957979,1779676239000,-169.39204064,0.0001315,2]
[422957980,1779676239000,-500.0,0.0001315,2]
[422957972,1779676239000,-169.39204064,0.00013095,2]
[422957977,1779676239000,-169.39204064,0.00013136,2]
[422957974,1779676239000,-169.39204064,0.00013109,2]
[422957969,1779676239000,-169.39204064,0.00013081,2]
[422958084,1779676240000,-150.0,0.00013589,2]
[422958076,1779676240000,-744.13682437,0.00013588,2]
[422958080,1779676240000,-155.04543266,0.00013589,2]
[422958082,1779676240000,-188.54625238,0.00013589,2]
[422958078,1779676240000,-169.39204064,0.00013589,2]
[422958070,1779676240000,-169.39204064,0.00013548,2]
[422958072,1779676240000,-169.39204064,0.00013562,2]
[422958066,1779676240000,-169.39204064,0.00013534,2]
[422958068,1779676240000,-150.0,0.00013535,2]
[422958055,1779676240000,-28178.93857177,0.00013499,2]
[422958074,1779676240000,-169.39204064,0.00013575,2]
[422958088,1779676240000,-151.73805478,0.00013589,2]
[422958108,1779676240000,-666.0,0.00013597,2]
[422958086,1779676240000,-218.68866841,0.00013589,2]
[422958090,1779676240000,-161.05182289,0.00013589,2]
[422958095,1779676240000,-154.42849072,0.00013589,2]
[422958097,1779676240000,-157.49856204,0.00013589,2]
[422958112,1779676240000,-200.42646137,0.00013598,2]
[422958110,1779676240000,-199.0,0.00013598,2]
[422958114,1779676240000,-2500000.0,0.00013598,2]
[422958116,1779676240000,-297.67,0.00013608,2]
[422958119,1779676240000,-1039.16,0.00013608,2]
[422958121,1779676240000,-764.79,0.00013608,2]
[422958099,1779676240000,-697.78488851,0.00013596,2]
[422958103,1779676240000,-203.36428462,0.00013597,2]
[422958059,1779676240000,-150.0,0.00013518,2]
[422958093,1779676240000,-150.5384922,0.00013589,2]
[422958064,1779676240000,-150.0,0.00013527,2]
[422958042,1779676240000,-169.39204064,0.00013479,2]
[422958057,1779676240000,-169.39204064,0.00013507,2]
[422958123,1779676240000,-300.0,0.00013697,2]
[422958017,1779676240000,-169.39204064,0.00013342,2]
[422958018,1779676240000,-169.39204064,0.00013356,2]
[422958019,1779676240000,-150.0,0.00013363,2]
[422958020,1779676240000,-169.39204064,0.00013369,2]
[422958021,1779676240000,-150.0,0.00013372,2]
[422958023,1779676240000,-169.39204064,0.00013383,2]
[422958022,1779676240000,-150.0,0.00013374,2]
[422958025,1779676240000,-150.0,0.00013404,2]
[422958028,1779676240000,-169.39204064,0.00013424,2]
[422958024,1779676240000,-169.39204064,0.00013397,2]
[422958027,1779676240000,-150.0,0.00013419,2]
[422958062,1779676240000,-169.39204064,0.0001352,2]
[422958026,1779676240000,-169.39204064,0.00013411,2]
[422958040,1779676240000,-169.39204064,0.00013466,2]
[422958044,1779676240000,-150.0,0.0001348,2]
[422958029,1779676240000,-150.0,0.00013426,2]
[422958046,1779676240000,-169.39204064,0.00013493,2]
[422958038,1779676240000,-150.0,0.00013466,2]
[422958031,1779676240000,-150.0,0.00013446,2]
[422958036,1779676240000,-187.94,0.00013458,2]
[422958034,1779676240000,-150.0,0.00013453,2]
[422958032,1779676240000,-169.39204064,0.00013452,2]
[422958048,1779676240000,-999.99,0.00013498,2]
[422958051,1779676240000,-7785.08797099,0.00013498,2]
[422958053,1779676240000,-408.6925,0.00013499,2]
[422958030,1779676240000,-169.39204064,0.00013438,2]
[422958101,1779676240000,-500.0,0.00013597,2]
[422958174,1779676240000,-731.73,0.00013698,2]
[422958125,1779676240000,-666.0,0.00013697,2]
[422958169,1779676240000,-731.73,0.00013698,2]
[422958167,1779676240000,-500.0,0.00013698,2]
[422958165,1779676240000,-500.0,0.00013698,2]
[422958170,1779676240000,-731.73,0.00013698,2]
[422958166,1779676240000,-464.12373748,0.00013698,2]
[422958171,1779676240000,-731.73,0.00013698,2]
[422958175,1779676240000,-731.73,0.00013698,2]
[422958185,1779676240000,-500.0,0.00013698,2]
[422958192,1779676240000,-500.0,0.00013698,2]
[422958177,1779676240000,-731.73,0.00013698,2]
[422958178,1779676240000,-731.73,0.00013698,2]
[422958176,1779676240000,-731.73,0.00013698,2]
[422958164,1779676240000,-500.0,0.00013698,2]
[422958180,1779676240000,-500.0,0.00013698,2]
[422958179,1779676240000,-731.73,0.00013698,2]
[422958181,1779676240000,-500.0,0.00013698,2]
[422958183,1779676240000,-500.0,0.00013698,2]
[422958184,1779676240000,-500.0,0.00013698,2]
[422958186,1779676240000,-500.0,0.00013698,2]
[422958187,1779676240000,-500.0,0.00013698,2]
[422958193,1779676240000,-632.46694468,0.00013698,2]
[422958188,1779676240000,-527.69868372,0.00013698,2]
[422958190,1779676240000,-500.0,0.00013698,2]
[422958189,1779676240000,-500.0,0.00013698,2]
[422958194,1779676240000,-581.2,0.00013698,2]
[422958106,1779676240000,-300.0,0.00013597,2]
[422958182,1779676240000,-500.0,0.00013698,2]
[422958168,1779676240000,-368.96197034,0.00013698,2]
[422958191,1779676240000,-500.0,0.00013698,2]
[422958172,1779676240000,-731.73,0.00013698,2]
[422958163,1779676240000,-500.0,0.00013698,2]
[422958127,1779676240000,-500.0,0.00013698,2]
[422958134,1779676240000,-500.0,0.00013698,2]
[422958140,1779676240000,-500.0,0.00013698,2]
[422958129,1779676240000,-500.0,0.00013698,2]
[422958131,1779676240000,-370.84281799,0.00013698,2]
[422958136,1779676240000,-500.0,0.00013698,2]
[422958145,1779676240000,-500.0,0.00013698,2]
[422958143,1779676240000,-500.0,0.00013698,2]
[422958148,1779676240000,-500.0,0.00013698,2]
[422958147,1779676240000,-500.0,0.00013698,2]
[422958141,1779676240000,-500.0,0.00013698,2]
[422958149,1779676240000,-500.0,0.00013698,2]
[422958137,1779676240000,-500.0,0.00013698,2]
[422958153,1779676240000,-500.0,0.00013698,2]
[422958152,1779676240000,-500.0,0.00013698,2]
[422958162,1779676240000,-339.16611451,0.00013698,2]
[422958173,1779676240000,-731.73,0.00013698,2]
[422958155,1779676240000,-500.0,0.00013698,2]
[422958154,1779676240000,-500.0,0.00013698,2]
[422958160,1779676240000,-500.0,0.00013698,2]
[422958161,1779676240000,-500.0,0.00013698,2]
[422958156,1779676240000,-500.0,0.00013698,2]
[422958159,1779676240000,-500.0,0.00013698,2]
[422958157,1779676240000,-500.0,0.00013698,2]
[422958151,1779676240000,-549.62048658,0.00013698,2]
[422958150,1779676240000,-500.0,0.00013698,2]
[422958158,1779676240000,-500.0,0.00013698,2]
[422958232,1779676241000,-418.24509229,0.00013698,2]
[422958229,1779676241000,-500.0,0.00013698,2]
[422958231,1779676241000,-500.0,0.00013698,2]
[422958230,1779676241000,-500.0,0.00013698,2]
[422958224,1779676241000,-500.0,0.00013698,2]
[422958225,1779676241000,-500.0,0.00013698,2]
[422958226,1779676241000,-500.0,0.00013698,2]
[422958234,1779676241000,-500.0,0.00013698,2]
[422958223,1779676241000,-500.0,0.00013698,2]
[422958227,1779676241000,-500.0,0.00013698,2]
[422958228,1779676241000,-500.0,0.00013698,2]
[422958244,1779676241000,-500.0,0.00013698,2]
[422958239,1779676241000,-500.0,0.00013698,2]
[422958233,1779676241000,-500.0,0.00013698,2]
[422958245,1779676241000,-500.0,0.00013698,2]
[422958237,1779676241000,-500.0,0.00013698,2]
[422958235,1779676241000,-500.0,0.00013698,2]
[422958241,1779676241000,-500.0,0.00013698,2]
[422958238,1779676241000,-500.0,0.00013698,2]
[422958242,1779676241000,-500.0,0.00013698,2]
[422958240,1779676241000,-500.0,0.00013698,2]
[422958236,1779676241000,-500.0,0.00013698,2]
[422958222,1779676241000,-500.0,0.00013698,2]
[422958257,1779676241000,-500.0,0.00013698,2]
[422958243,1779676241000,-500.0,0.00013698,2]
[422958221,1779676241000,-500.0,0.00013698,2]
[422958206,1779676241000,-500.0,0.00013698,2]
[422958218,1779676241000,-500.0,0.00013698,2]
[422958247,1779676241000,-500.0,0.00013698,2]
[422958195,1779676241000,-581.2,0.00013698,2]
[422958196,1779676241000,-581.2,0.00013698,2]
[422958197,1779676241000,-581.2,0.00013698,2]
[422958198,1779676241000,-581.2,0.00013698,2]
[422958199,1779676241000,-581.2,0.00013698,2]
[422958201,1779676241000,-581.2,0.00013698,2]
[422958203,1779676241000,-581.2,0.00013698,2]
[422958208,1779676241000,-500.0,0.00013698,2]
[422958205,1779676241000,-581.2,0.00013698,2]
[422958200,1779676241000,-581.2,0.00013698,2]
[422958212,1779676241000,-500.0,0.00013698,2]
[422958204,1779676241000,-500.0,0.00013698,2]
[422958207,1779676241000,-500.0,0.00013698,2]
[422958210,1779676241000,-500.0,0.00013698,2]
[422958220,1779676241000,-500.0,0.00013698,2]
[422958209,1779676241000,-500.0,0.00013698,2]
[422958211,1779676241000,-500.0,0.00013698,2]
[422958213,1779676241000,-500.0,0.00013698,2]
[422958214,1779676241000,-500.0,0.00013698,2]
[422958215,1779676241000,-500.0,0.00013698,2]
[422958217,1779676241000,-500.0,0.00013698,2]
[422958219,1779676241000,-500.0,0.00013698,2]
[422958216,1779676241000,-500.0,0.00013698,2]
[422958202,1779676241000,-581.2,0.00013698,2]
[422958246,1779676241000,-500.0,0.00013698,2]
[422958248,1779676241000,-500.0,0.00013698,2]
[422958286,1779676241000,-752.12,0.00013698,2]
[422958282,1779676241000,-752.12,0.00013698,2]
[422958279,1779676241000,-319.1543372,0.00013698,2]
[422958280,1779676241000,-752.12,0.00013698,2]
[422958272,1779676241000,-500.0,0.00013698,2]
[422958285,1779676241000,-752.12,0.00013698,2]
[422958292,1779676241000,-1995.66,0.00013698,2]
[422958287,1779676241000,-752.12,0.00013698,2]
[422958290,1779676241000,-752.12,0.00013698,2]
[422958288,1779676241000,-752.12,0.00013698,2]
[422958293,1779676241000,-1995.66,0.00013698,2]
[422958295,1779676241000,-1995.66,0.00013698,2]
[422958294,1779676241000,-1995.66,0.00013698,2]
[422958289,1779676241000,-752.12,0.00013698,2]
[422958291,1779676241000,-1995.66,0.00013698,2]
[422958296,1779676241000,-1995.66,0.00013698,2]
[422958297,1779676241000,-1995.66,0.00013698,2]
[422958304,1779676241000,-1995.66,0.00013698,2]
[422958303,1779676241000,-1995.66,0.00013698,2]
[422958305,1779676241000,-1995.66,0.00013698,2]
[422958298,1779676241000,-1995.66,0.00013698,2]
[422958299,1779676241000,-1995.66,0.00013698,2]
[422958300,1779676241000,-1995.66,0.00013698,2]
[422958301,1779676241000,-1995.66,0.00013698,2]
[422958302,1779676241000,-1995.66,0.00013698,2]
[422958249,1779676241000,-500.0,0.00013698,2]
[422958281,1779676241000,-752.12,0.00013698,2]
[422958274,1779676241000,-500.0,0.00013698,2]
[422958278,1779676241000,-500.0,0.00013698,2]
[422958275,1779676241000,-500.0,0.00013698,2]
[422958252,1779676241000,-500.0,0.00013698,2]
[422958253,1779676241000,-500.0,0.00013698,2]
[422958250,1779676241000,-500.0,0.00013698,2]
[422958254,1779676241000,-500.0,0.00013698,2]
[422958255,1779676241000,-500.0,0.00013698,2]
[422958251,1779676241000,-500.0,0.00013698,2]
[422958256,1779676241000,-500.0,0.00013698,2]
[422958267,1779676241000,-500.0,0.00013698,2]
[422958277,1779676241000,-500.0,0.00013698,2]
[422958271,1779676241000,-500.0,0.00013698,2]
[422958269,1779676241000,-500.0,0.00013698,2]
[422958270,1779676241000,-500.0,0.00013698,2]
[422958258,1779676241000,-500.0,0.00013698,2]
[422958268,1779676241000,-500.0,0.00013698,2]
[422958259,1779676241000,-500.0,0.00013698,2]
[422958263,1779676241000,-500.0,0.00013698,2]
[422958261,1779676241000,-500.0,0.00013698,2]
[422958264,1779676241000,-500.0,0.00013698,2]
[422958262,1779676241000,-500.0,0.00013698,2]
[422958266,1779676241000,-500.0,0.00013698,2]
[422958265,1779676241000,-500.0,0.00013698,2]
[422958273,1779676241000,-500.0,0.00013698,2]
[422958283,1779676241000,-752.12,0.00013698,2]
[422958284,1779676241000,-752.12,0.00013698,2]
[422958260,1779676241000,-500.0,0.00013698,2]
[422958276,1779676241000,-500.0,0.00013698,2]
[422958342,1779676242000,-500.0,0.00013699,2]
[422958343,1779676242000,-500.0,0.00013699,2]
[422958345,1779676242000,-500.0,0.00013699,2]
[422958341,1779676242000,-500.0,0.00013699,2]
[422958349,1779676242000,-500.0,0.00013699,2]
[422958350,1779676242000,-500.0,0.00013699,2]
[422958353,1779676242000,-323.65188113,0.00013699,2]
[422958346,1779676242000,-500.0,0.00013699,2]
[422958347,1779676242000,-500.0,0.00013699,2]
[422958352,1779676242000,-500.0,0.00013699,2]
[422958348,1779676242000,-500.0,0.00013699,2]
[422958344,1779676242000,-500.0,0.00013699,2]
[422958351,1779676242000,-500.0,0.00013699,2]
[422958366,1779676242000,-500.0,0.00013699,2]
[422958365,1779676242000,-500.0,0.00013699,2]
[422958354,1779676242000,-500.0,0.00013699,2]
[422958358,1779676242000,-500.0,0.00013699,2]
[422958356,1779676242000,-500.0,0.00013699,2]
[422958357,1779676242000,-500.0,0.00013699,2]
[422958361,1779676242000,-500.0,0.00013699,2]
[422958360,1779676242000,-500.0,0.00013699,2]
[422958364,1779676242000,-500.0,0.00013699,2]
[422958359,1779676242000,-500.0,0.00013699,2]
[422958362,1779676242000,-500.0,0.00013699,2]
[422958363,1779676242000,-500.0,0.00013699,2]
[422958367,1779676242000,-500.0,0.00013699,2]
[422958329,1779676242000,-500.0,0.00013699,2]
[422958355,1779676242000,-500.0,0.00013699,2]
[422958335,1779676242000,-500.0,0.00013699,2]
[422958308,1779676242000,-1995.66,0.00013698,2]
[422958334,1779676242000,-500.0,0.00013699,2]
[422958306,1779676242000,-1995.66,0.00013698,2]
[422958307,1779676242000,-1995.66,0.00013698,2]
[422958310,1779676242000,-1995.66,0.00013698,2]
[422958309,1779676242000,-1995.66,0.00013698,2]
[422958312,1779676242000,-1995.66,0.00013698,2]
[422958313,1779676242000,-1995.66,0.00013698,2]
[422958322,1779676242000,-178.88,0.00013699,2]
[422958321,1779676242000,-214.66,0.00013699,2]
[422958320,1779676242000,-257.59,0.00013699,2]
[422958318,1779676242000,-166.66,0.00013699,2]
[422958324,1779676242000,-200.0,0.00013699,2]
[422958319,1779676242000,-2500.0,0.00013699,2]
[422958311,1779676242000,-1995.66,0.00013698,2]
[422958314,1779676242000,-1995.86430945,0.00013698,2]
[422958323,1779676242000,-894.42,0.00013699,2]
[422958317,1779676242000,-491.97640748,0.00013698,2]
[422958316,1779676242000,-500.0,0.00013698,2]
[422958315,1779676242000,-500.0,0.00013698,2]
[422958326,1779676242000,-1400.52537883,0.00013699,2]
[422958337,1779676242000,-500.0,0.00013699,2]
[422958336,1779676242000,-500.0,0.00013699,2]
[422958339,1779676242000,-500.0,0.00013699,2]
[422958327,1779676242000,-500.0,0.00013699,2]
[422958325,1779676242000,-827.18086267,0.00013699,2]
[422958333,1779676242000,-500.0,0.00013699,2]
[422958340,1779676242000,-500.0,0.00013699,2]
[422958328,1779676242000,-500.0,0.00013699,2]
[422958331,1779676242000,-500.0,0.00013699,2]
[422958381,1779676242000,-500.0,0.00013699,2]
[422958382,1779676242000,-8294.21240666,0.00013726,2]
[422958376,1779676242000,-500.0,0.00013699,2]
[422958404,1779676242000,-251.908991,0.00014316,2]
[422958409,1779676242000,-350.0,0.00014396,2]
[422958408,1779676242000,-166.66,0.00014384,2]
[422958417,1779676242000,-752.12,0.00014432,2]
[422958411,1779676242000,-500.0,0.00014432,2]
[422958410,1779676242000,-350.0,0.00014413,2]
[422958413,1779676242000,-731.73,0.00014432,2]
[422958419,1779676242000,-184.56327622,0.00014436,2]
[422958421,1779676242000,-1830.62247989,0.000145,2]
[422958423,1779676242000,-500.0,0.00014521,2]
[422958424,1779676242000,-195.64947258,0.00014524,2]
[422958429,1779676242000,-500.0,0.00014535,2]
[422958435,1779676242000,-500.0,0.00014535,2]
[422958428,1779676242000,-500.0,0.00014535,2]
[422958427,1779676242000,-300.0,0.00014535,2]
[422958425,1779676242000,-300.0,0.00014534,2]
[422958433,1779676242000,-500.0,0.00014535,2]
[422958431,1779676242000,-500.0,0.00014535,2]
[422958437,1779676242000,-500.0,0.00014535,2]
[422958441,1779676242000,-731.73,0.00014535,2]
[422958439,1779676242000,-731.73,0.00014535,2]
[422958443,1779676242000,-731.73,0.00014535,2]
[422958442,1779676242000,-731.73,0.00014535,2]
[422958444,1779676242000,-731.73,0.00014535,2]
[422958447,1779676242000,-581.2,0.00014535,2]
[422958446,1779676242000,-581.2,0.00014535,2]
[422958378,1779676242000,-650.0,0.00013699,2]
[422958401,1779676242000,-211.895369,0.00014245,2]
[422958403,1779676242000,-8294.21240666,0.00014312,2]
[422958415,1779676242000,-581.2,0.00014432,2]
[422958402,1779676242000,-166.66,0.00014247,2]
[422958370,1779676242000,-500.0,0.00013699,2]
[422958372,1779676242000,-500.0,0.00013699,2]
[422958445,1779676242000,-731.73,0.00014535,2]
[422958368,1779676242000,-500.0,0.00013699,2]
[422958374,1779676242000,-500.0,0.00013699,2]
[422958379,1779676242000,-500.0,0.00013699,2]
[422958369,1779676242000,-500.0,0.00013699,2]
[422958380,1779676242000,-500.0,0.00013699,2]
[422958394,1779676242000,-214.72117247,0.00014153,2]
[422958399,1779676242000,-359.100136,0.00014245,2]
[422958385,1779676242000,-231.622836,0.0001396,2]
[422958383,1779676242000,-166.66,0.00013836,2]
[422958387,1779676242000,-19383.46855849,0.0001399,2]
[422958386,1779676242000,-166.66,0.00013973,2]
[422958384,1779676242000,-823.0,0.00013921,2]
[422958391,1779676242000,-765.88,0.00014084,2]
[422958398,1779676242000,-175.572933,0.00014245,2]
[422958388,1779676242000,-250.0,0.00014,2]
[422958407,1779676242000,-442.553595,0.00014316,2]
[422958400,1779676242000,-191.646368,0.00014245,2]
[422958405,1779676242000,-160.0,0.00014316,2]
[422958397,1779676242000,-247.044144,0.00014245,2]
[422958406,1779676242000,-301.276797,0.00014316,2]
[422958396,1779676242000,-271.81175,0.00014245,2]
[422958393,1779676242000,-736.0,0.00014121,2]
[422958390,1779676242000,-1282.32,0.00014065,2]
[422958392,1779676242000,-166.66,0.0001411,2]
[422958389,1779676242000,-244.75057516,0.00014055,2]
[422958395,1779676242000,-1248.16,0.00014207,2]
[422958457,1779676243000,-752.12,0.00014535,2]
[422958456,1779676243000,-752.12,0.00014535,2]
[422958454,1779676243000,-752.12,0.00014535,2]
[422958455,1779676243000,-752.12,0.00014535,2]
[422958449,1779676243000,-581.2,0.00014535,2]
[422958452,1779676243000,-752.12,0.00014535,2]
[422958453,1779676243000,-752.12,0.00014535,2]
[422958451,1779676243000,-581.2,0.00014535,2]
[422958450,1779676243000,-581.2,0.00014535,2]
[422958458,1779676243000,-579039.08588637,0.00014536,2]
[422958448,1779676243000,-581.2,0.00014535,2]
[422958459,1779676243000,-38684.5,0.00014536,2]
[422958471,1779676243000,-127327.69822848,0.00014536,2]
[422958460,1779676243000,-18132.16914081,0.00014536,2]
[422958463,1779676243000,-2365.275,0.00014536,2]
[422958462,1779676243000,-933.41159828,0.00014536,2]
[422958464,1779676243000,-2511.0,0.00014536,2]
[422958465,1779676243000,-1844.09,0.00014536,2]
[422958466,1779676243000,-317.893275,0.00014536,2]
[422958468,1779676243000,-166420.36368589,0.00014536,2]
[422958467,1779676243000,-31629.68904005,0.00014536,2]
[422958469,1779676243000,-1845.6059844,0.00014536,2]
[422958470,1779676243000,-1118.29677384,0.00014536,2]
[422958473,1779676243000,-464971.97078912,0.00014536,2]
[422958472,1779676243000,-329.91,0.00014536,2]
[422958461,1779676243000,-540.54074581,0.00014536,2]
[422958481,1779676245000,-154.547589,0.00014536,2]
[422958479,1779676245000,-1558.86743648,0.00014536,2]
[422958482,1779676245000,-733.813787,0.00014536,2]
[422958483,1779676245000,-367.220444,0.00014536,2]
[422958480,1779676245000,-60429.63241547,0.00014536,2]
[422958499,1779676246000,-205.903696,0.00014536,2]
[422958500,1779676246000,-151.0,0.00014536,2]
[422958514,1779676246000,-200.0,0.0001481,2]
[422958502,1779676246000,-151.0,0.00014536,2]
[422958503,1779676246000,-205.903696,0.00014536,2]
[422958501,1779676246000,-205.903696,0.00014536,2]
[422958508,1779676246000,-3881.0,0.000147,2]
[422958515,1779676246000,-183.39747785,0.00014829,2]
[422958519,1779676246000,-25000.0,0.00014847,3]
[422958513,1779676246000,-2000.0,0.000148,2]
[422958507,1779676246000,-2249.63230737,0.000147,2]
[422958520,1779676246000,-25000.0,0.00014856,3]
[422958496,1779676246000,-157.861703,0.00014536,2]
[422958518,1779676246000,-25000.0,0.00014838,3]
[422958493,1779676246000,-515.185556,0.00014536,2]
[422958489,1779676246000,-367.220444,0.00014536,2]
[422958505,1779676246000,-205.903696,0.00014536,2]
[422958509,1779676246000,-195.64947257,0.00014712,2]
[422958484,1779676246000,-733.813787,0.00014536,2]
[422958492,1779676246000,-515.185556,0.00014536,2]
[422958491,1779676246000,-515.185556,0.00014536,2]
[422958485,1779676246000,-367.220444,0.00014536,2]
[422958490,1779676246000,-151.0,0.00014536,2]
[422958497,1779676246000,-157.861703,0.00014536,2]
[422958487,1779676246000,-367.220444,0.00014536,2]
[422958486,1779676246000,-733.813787,0.00014536,2]
[422958494,1779676246000,-515.185556,0.00014536,2]
[422958504,1779676246000,-151.0,0.00014536,2]
[422958495,1779676246000,-157.861703,0.00014536,2]
[422958498,1779676246000,-157.861703,0.00014536,2]
[422958506,1779676246000,-273.146374,0.00014568,2]
[422958488,1779676246000,-733.813787,0.00014536,2]
[422958512,1779676246000,-29991.2966,0.000148,2]
[422958529,1779676246000,-25000.0,0.00014891,3]
[422958517,1779676246000,-350.0,0.00014831,2]
[422958541,1779676246000,-752.12,0.00014893,2]
[422958540,1779676246000,-752.12,0.00014893,2]
[422958546,1779676246000,-230621.38760132,0.00014894,2]
[422958545,1779676246000,-57505.8828331,0.00014894,2]
[422958544,1779676246000,-752.16391498,0.00014893,2]
[422958543,1779676246000,-752.12,0.00014893,2]
[422958537,1779676246000,-581.2,0.00014893,2]
[422958542,1779676246000,-752.12,0.00014893,2]
[422958548,1779676246000,-7470.15125357,0.00014894,2]
[422958550,1779676246000,-335.819307,0.00014894,2]
[422958547,1779676246000,-75537.13896407,0.00014894,2]
[422958549,1779676246000,-10505.0,0.00014894,2]
[422958551,1779676246000,-525.0,0.00014894,2]
[422958511,1779676246000,-300.0,0.00014799,2]
[422958536,1779676246000,-581.2,0.00014893,2]
[422958539,1779676246000,-581.31360471,0.00014893,2]
[422958538,1779676246000,-581.2,0.00014893,2]
[422958523,1779676246000,-581.2,0.00014864,2]
[422958510,1779676246000,-350.0,0.00014789,2]
[422958522,1779676246000,-731.73,0.00014864,2]
[422958527,1779676246000,-200.0,0.00014879,2]
[422958532,1779676246000,-731.73,0.00014893,2]
[422958521,1779676246000,-309.63286915,0.00014864,2]
[422958535,1779676246000,-581.2,0.00014893,2]
[422958524,1779676246000,-752.12,0.00014864,2]
[422958526,1779676246000,-25000.0,0.00014874,3]
[422958534,1779676246000,-731.8784277,0.00014893,2]
[422958525,1779676246000,-25000.0,0.00014865,3]
[422958530,1779676246000,-731.73,0.00014893,2]
[422958528,1779676246000,-25000.0,0.00014882,3]
[422958531,1779676246000,-731.73,0.00014893,2]
[422958533,1779676246000,-731.73,0.00014893,2]
[422958516,1779676246000,-25000.0,0.0001483,3]
[422958587,1779676250000,152.0,8.54e-05,7]
[422958593,1779676487000,150.32,6.847e-05,2]
[422958594,1779676487000,150.32,7.227e-05,2]
[422958596,1779676487000,150.32,7.988e-05,2]
[422958597,1779676487000,150.32,8.368e-05,2]
[422958595,1779676487000,150.32,7.608e-05,2]
[422958601,1779677053000,152.0,8.54e-05,7]
[422958602,1779677091000,189.19599049,0.00014212,30]
[422958606,1779677255000,152.0,8.536e-05,7]
[422958613,1779677431000,-150.32,9.89e-05,2]
[422958612,1779677431000,-122.32,9.715e-05,2]
[422958611,1779677431000,-42.29,9.715e-05,2]
[422958610,1779677431000,-150.32,9.509e-05,2]
[422958609,1779677431000,-150.32,9.129e-05,2]
[422958608,1779677431000,-150.32,8.749e-05,2]
[422958647,1779677432000,-9999.99,0.00012087,2]
[422958646,1779677432000,-170.42539363,0.00012046,2]
[422958645,1779677432000,-165.41288204,0.00012046,2]
[422958639,1779677432000,-779.34,0.00011843,2]
[422958638,1779677432000,-150.32,0.00011792,2]
[422958643,1779677432000,-1680.0,0.00012029,2]
[422958641,1779677432000,-706.35,0.00011938,2]
[422958640,1779677432000,-2852.14,0.00011843,2]
[422958649,1779677432000,-1216.62,0.00012087,2]
[422958644,1779677432000,-214.72117247,0.00012046,2]
[422958648,1779677432000,-999.99,0.00012087,2]
[422958658,1779677432000,-255.0,0.00012471,2]